[Event "ETCC Women 2013"]
[Site "Warsaw"]
[Date "2013.11.11"]
[Round "4"]
[White "Yildiz, Betul Cemre"]
[Black "Zozulia, Anna"]
[Result "1-0"]
[ECO "A48"]
[WhiteElo "2291"]
[BlackElo "2334"]
[PlyCount "75"]
[EventDate "2013.??.??"]
[EventCountry "POL"]
[WhiteTeam "Türkei"]
[BlackTeam "Belgien"]
[WhiteTeamCountry "TUR"]
[BlackTeamCountry "BEL"]
[TimeControl "40/5400+30:1800+30"]

1. Nf3 {[%emt 0:00:00]} Nf6 {[%emt 0:00:49]} 2. d4 {[%emt 0:00:00]} g6 {[%emt
0:00:08]} 3. Nbd2 {[%emt 0:00:00]} c5 {[%emt 0:06:14]} 4. c3 {[%emt 0:08:09]}
cxd4 {[%emt 0:02:27]} 5. cxd4 {[%emt 0:00:03]} d5 {[%emt 0:08:05]} 6. e3 {
[%emt 0:01:51]} Bg7 {[%emt 0:00:06]} 7. Bd3 {[%emt 0:00:26]} O-O {[%emt 0:00:
58]} 8. O-O {[%emt 0:00:05]} Nc6 {[%emt 0:00:07]} 9. a3 {[%emt 0:02:38]} a5 {
[%emt 0:00:36]} 10. Nb3 {[%emt 0:06:08]} b6 {[%emt 0:01:18]} 11. Ne5 {[%emt 0:
04:16]} Nxe5 {[%emt 0:22:07]} 12. dxe5 {[%emt 0:00:03]} Ng4 {[%emt 0:00:10]}
13. f4 {[%emt 0:01:30]} f6 {[%emt 0:00:46]} 14. exf6 {[%emt 0:04:17]} Nxf6 {
[%emt 0:11:58]} 15. Nd4 {[%emt 0:03:28]} Qd6 {[%emt 0:00:13]} 16. Nb5 {[%emt 0:
09:05]} Qd7 {[%emt 0:09:10]} 17. Qb3 {[%emt 0:07:51]} Bb7 {[%emt 0:03:58]} 18.
Bd2 {[%emt 0:08:32]} Rfc8 {[%emt 0:04:55]} 19. Bc3 {[%emt 0:04:17]} e6 {[%emt
0:00:06]} 20. Be5 {[%emt 0:03:08]} a4 {[%emt 0:06:59]} 21. Qd1 {[%emt 0:01:08]}
Ba6 {[%emt 0:11:42]} 22. Nd4 {[%emt 0:08:26]} Bxd3 {[%emt 0:00:08]} 23. Qxd3 {
[%emt 0:00:02]} Ne4 {[%emt 0:00:08]} 24. Bxg7 {[%emt 0:06:57]} Kxg7 {[%emt 0:
00:05]} 25. Qe2 {[%emt 0:03:42]} Nd6 {[%emt 0:03:33]} 26. Rad1 {[%emt 0:03:29]}
Qf7 {[%emt 0:01:11]} 27. Nb5 {[%emt 0:05:54]} Ne4 {[%emt 0:00:48]} 28. Rd4 {
[%emt 0:04:49]} Rc5 {[%emt 0:00:09]} 29. Rb4 {[%emt 0:00:50]} Rac8 {[%emt 0:04:
17]} 30. Nd4 {[%emt 0:01:59]} Rc1 {[%emt 0:01:06]} 31. Rxb6 {[%emt 0:00:47]}
Kg8 {[%emt 0:00:38]} 32. Rxe6 {[%emt 0:01:33]} Rxf1+ {[%emt 0:00:24]} 33. Qxf1
{[%emt 0:00:02]} Nd2 {[%emt 0:00:03]} 34. Qd3 {[%emt 0:01:02]} Rc1+ {[%emt 0:
00:51]} 35. Kf2 {[%emt 0:00:02]} Rd1 {[%emt 0:00:39]} 36. Ke2 {[%emt 0:00:37]}
Nb3 {[%emt 0:00:33]} 37. Kxd1 {[%emt 0:00:49]} Nxd4 {[%emt 0:00:04]} 38. Re5 {
[%emt 0:00:24]} 1-0

[Event "ETCC Women 2013"]
[Site "Warsaw"]
[Date "2013.11.11"]
[Round "4"]
[White "Unuk, Laura"]
[Black "Olsarova, Karolina"]
[Result "1-0"]
[ECO "E16"]
[WhiteElo "1991"]
[BlackElo "2275"]
[PlyCount "79"]
[EventDate "2013.??.??"]
[EventCountry "POL"]
[WhiteTeam "Slowenien"]
[BlackTeam "Tschechien"]
[WhiteTeamCountry "SLO"]
[BlackTeamCountry "CZE"]
[TimeControl "40/5400+30:1800+30"]

1. d4 {[%emt 0:00:00]} Nf6 {[%emt 0:00:00]} 2. Nf3 {[%emt 0:00:00]} e6 {[%emt
0:00:14]} 3. g3 {[%emt 0:00:37]} b6 {[%emt 0:04:22]} 4. Bg2 {[%emt 0:00:25]}
Bb7 {[%emt 0:00:20]} 5. c4 {[%emt 0:03:01]} Bb4+ {[%emt 0:03:07]} 6. Nc3 {
[%emt 0:02:53]} O-O {[%emt 0:08:14]} 7. O-O {[%emt 0:00:28]} Bxc3 {[%emt 0:07:
56]} 8. bxc3 {[%emt 0:00:07]} d6 {[%emt 0:00:09]} 9. Bg5 {[%emt 0:08:51]} Nbd7
{[%emt 0:02:57]} 10. Qd3 {[%emt 0:01:35]} h6 {[%emt 0:04:45]} 11. Bxf6 {[%emt
0:04:52]} Nxf6 {[%emt 0:00:15]} 12. Nd2 {[%emt 0:01:09]} Bxg2 {[%emt 0:03:43]}
13. Kxg2 {[%emt 0:00:14]} e5 {[%emt 0:00:43]} 14. f4 {[%emt 0:11:10]} Re8 {
[%emt 0:07:59]} 15. e4 {[%emt 0:02:23]} Qd7 {[%emt 0:12:48]} 16. f5 {[%emt 0:
09:44]} c6 {[%emt 0:12:49]} 17. d5 {[%emt 0:11:54]} cxd5 {[%emt 0:05:08]} 18.
cxd5 {[%emt 0:01:07]} Rac8 {[%emt 0:00:17]} 19. Kh1 {[%emt 0:07:00]} Rc5 {
[%emt 0:04:42]} 20. Rf3 {[%emt 0:10:06]} Rec8 {[%emt 0:03:22]} 21. g4 {[%emt 0:
01:56]} Qd8 {[%emt 0:05:36]} 22. Rg1 {[%emt 0:04:51]} Nh7 {[%emt 0:00:37]} 23.
c4 {[%emt 0:05:51]} R8c7 {[%emt 0:04:53]} 24. Qe3 {[%emt 0:05:03]} Qh4 {[%emt
0:02:47]} 25. Rh3 {[%emt 0:01:04]} Qg5 {[%emt 0:00:30]} 26. Qe2 {[%emt 0:01:45]
} Qd8 {[%emt 0:03:07]} 27. Rh5 {[%emt 0:03:05]} f6 {[%emt 0:01:13]} 28. h4 {
[%emt 0:01:16]} Qe8 {[%emt 0:00:39]} 29. g5 {[%emt 0:01:06]} fxg5 {[%emt 0:00:
32]} 30. hxg5 {[%emt 0:00:07]} Nxg5 {[%emt 0:00:32]} 31. Rgxg5 {[%emt 0:00:38]}
hxg5 {[%emt 0:00:36]} 32. Qh2 {[%emt 0:00:19]} Kf7 {[%emt 0:00:35]} 33. Rh8 {
[%emt 0:00:18]} Qxh8 {[%emt 0:00:30]} 34. Qxh8 {[%emt 0:00:04]} g4 {[%emt 0:00:
31]} 35. Qd8 {[%emt 0:00:58]} Rc8 {[%emt 0:00:25]} 36. Qd7+ {[%emt 0:00:10]}
Kf6 {[%emt 0:00:35]} 37. Qxd6+ {[%emt 0:00:15]} Kg5 {[%emt 0:00:06]} 38. Qxe5 {
[%emt 0:00:16]} Kh4 {[%emt 0:00:52]} 39. Kg2 {[%emt 0:00:45]} b5 {[%emt 0:00:
24]} 40. Qxg7 {[%emt 0:00:00]} 1-0

[Event "ETCC Women 2013"]
[Site "Warsaw"]
[Date "2013.11.11"]
[Round "4"]
[White "Srebrnic, Ana"]
[Black "Kulovana, Eva"]
[Result "1-0"]
[ECO "D15"]
[WhiteElo "2198"]
[BlackElo "2263"]
[PlyCount "117"]
[EventDate "2013.??.??"]
[EventCountry "POL"]
[WhiteTeam "Slowenien"]
[BlackTeam "Tschechien"]
[WhiteTeamCountry "SLO"]
[BlackTeamCountry "CZE"]
[TimeControl "40/5400+30:1800+30"]

1. Nf3 {[%emt 0:00:00]} d5 {[%emt 0:00:00]} 2. d4 {[%emt 0:00:00]} Nf6 {[%emt
0:00:00]} 3. c4 {[%emt 0:00:02]} c6 {[%emt 0:00:07]} 4. Nc3 {[%emt 0:00:26]} a6
{[%emt 0:00:28]} 5. c5 {[%emt 0:00:09]} Nbd7 {[%emt 0:00:46]} 6. Bf4 {[%emt 0:
00:52]} Nh5 {[%emt 0:00:57]} 7. Bd2 {[%emt 0:00:07]} Nhf6 {[%emt 0:00:15]} 8.
Qc2 {[%emt 0:00:16]} g6 {[%emt 0:02:15]} 9. g3 {[%emt 0:00:58]} Bg7 {[%emt 0:
03:19]} 10. Bg2 {[%emt 0:00:25]} O-O {[%emt 0:00:56]} 11. O-O {[%emt 0:00:05]}
e5 {[%emt 0:24:47]} 12. dxe5 {[%emt 0:25:57]} Ng4 {[%emt 0:02:54]} 13. e4 {
[%emt 0:03:01]} dxe4 {[%emt 0:09:20]} 14. Nxe4 {[%emt 0:01:28]} Ngxe5 {[%emt 0:
07:04]} 15. Nxe5 {[%emt 0:18:09]} Nxe5 {[%emt 0:04:44]} 16. Nd6 {[%emt 0:00:43]
} Qe7 {[%emt 0:13:50]} 17. Rfe1 {[%emt 0:16:35]} Be6 {[%emt 0:06:03]} 18. Bc3 {
[%emt 0:02:08]} Ng4 {[%emt 0:02:07]} 19. Bxg7 {[%emt 0:09:12]} Kxg7 {[%emt 0:
00:02]} 20. f3 {[%emt 0:00:21]} Nf6 {[%emt 0:04:56]} 21. Bh3 {[%emt 0:00:39]}
Nd5 {[%emt 0:04:46]} 22. Bxe6 {[%emt 0:05:28]} fxe6 {[%emt 0:00:05]} 23. f4 {
[%emt 0:00:19]} b5 {[%emt 0:05:06]} 24. Re5 {[%emt 0:01:57]} Rad8 {[%emt 0:03:
10]} 25. Rae1 {[%emt 0:00:28]} Rf6 {[%emt 0:02:40]} 26. Qe4 {[%emt 0:03:07]}
Qa7 {[%emt 0:00:28]} 27. Kh1 {[%emt 0:01:54]} Qxc5 {[%emt 0:01:40]} 28. Nb7 {
[%emt 0:00:19]} Qb6 {[%emt 0:00:26]} 29. Nxd8 {[%emt 0:00:08]} Qxd8 {[%emt 0:
00:11]} 30. Rxe6 {[%emt 0:00:43]} Rxe6 {[%emt 0:00:28]} 31. Qxe6 {[%emt 0:00:
04]} Qf6 {[%emt 0:00:31]} 32. Qxf6+ {[%emt 0:03:09]} Kxf6 {[%emt 0:00:02]} 33.
Rc1 {[%emt 0:00:25]} Ne7 {[%emt 0:00:10]} 34. Kg2 {[%emt 0:00:06]} a5 {[%emt 0:
00:12]} 35. Kf3 {[%emt 0:00:10]} h5 {[%emt 0:00:52]} 36. Ke4 {[%emt 0:00:24]}
Ke6 {[%emt 0:00:04]} 37. Rc5 {[%emt 0:01:25]} Kd6 {[%emt 0:00:25]} 38. Rg5 {
[%emt 0:00:08]} a4 {[%emt 0:00:42]} 39. b4 {[%emt 0:02:12]} axb3 {[%emt 0:00:
29]} 40. axb3 {[%emt 0:00:00]} c5 {[%emt 0:00:00]} 41. h3 {[%emt 0:01:30]} Kc6
{[%emt 0:09:02]} 42. Kd3 {[%emt 0:02:00]} Kd6 {[%emt 0:02:45]} 43. g4 {[%emt 0:
01:10]} hxg4 {[%emt 0:01:07]} 44. hxg4 {[%emt 0:00:05]} Kc6 {[%emt 0:00:36]}
45. Ke4 {[%emt 0:05:01]} Kd6 {[%emt 0:00:47]} 46. Re5 {[%emt 0:03:52]} Ng8 {
[%emt 0:01:07]} 47. Rd5+ {[%emt 0:00:17]} Kc6 {[%emt 0:00:13]} 48. Rg5 {[%emt
0:00:17]} Ne7 {[%emt 0:01:34]} 49. f5 {[%emt 0:06:28]} gxf5+ {[%emt 0:03:31]}
50. gxf5 {[%emt 0:00:05]} c4 {[%emt 0:02:27]} 51. f6 {[%emt 0:01:42]} Nc8 {
[%emt 0:00:07]} 52. b4 {[%emt 0:02:00]} Kd7 {[%emt 0:03:49]} 53. Kd5 {[%emt 0:
03:22]} Nb6+ {[%emt 0:01:31]} 54. Kc5 {[%emt 0:00:26]} Na4+ {[%emt 0:00:21]}
55. Kxb5 {[%emt 0:00:30]} Nb2 {[%emt 0:00:15]} 56. Rc5 {[%emt 0:01:25]} Ke6 {
[%emt 0:00:21]} 57. Rxc4 {[%emt 0:00:53]} Kxf6 {[%emt 0:00:26]} 58. Rd4 {[%emt
0:00:08]} Ke7 {[%emt 0:00:46]} 59. Rd2 {[%emt 0:00:11]} 1-0

[Event "ETCC Women 2013"]
[Site "Warsaw"]
[Date "2013.11.11"]
[Round "4"]
[White "Sikorova, Olga"]
[Black "Orehek, Spela"]
[Result "1-0"]
[ECO "B08"]
[WhiteElo "2278"]
[BlackElo "2026"]
[PlyCount "75"]
[EventDate "2013.??.??"]
[EventCountry "POL"]
[WhiteTeam "Tschechien"]
[BlackTeam "Slowenien"]
[WhiteTeamCountry "CZE"]
[BlackTeamCountry "SLO"]
[TimeControl "40/5400+30:1800+30"]

1. Nf3 {[%emt 0:00:00]} d6 {[%emt 0:00:09]} 2. d4 {[%emt 0:00:12]} g6 {[%emt 0:
00:36]} 3. e4 {[%emt 0:00:51]} Bg7 {[%emt 0:00:10]} 4. Nc3 {[%emt 0:00:47]} Nf6
{[%emt 0:01:33]} 5. h3 {[%emt 0:01:22]} O-O {[%emt 0:00:58]} 6. Be3 {[%emt 0:
00:46]} a6 {[%emt 0:03:10]} 7. a4 {[%emt 0:06:34]} c5 {[%emt 0:08:41]} 8. dxc5
{[%emt 0:17:18]} Qa5 {[%emt 0:01:30]} 9. Bd3 {[%emt 0:04:28]} dxc5 {[%emt 0:01:
59]} 10. O-O {[%emt 0:00:56]} Nc6 {[%emt 0:01:59]} 11. Nd2 {[%emt 0:06:02]} Nd4
{[%emt 0:18:19]} 12. Nc4 {[%emt 0:05:04]} Qd8 {[%emt 0:03:21]} 13. e5 {[%emt 0:
01:37]} Ne8 {[%emt 0:05:49]} 14. a5 {[%emt 0:03:26]} Be6 {[%emt 0:06:55]} 15.
Nb6 {[%emt 0:05:19]} Rb8 {[%emt 0:02:23]} 16. f4 {[%emt 0:01:28]} f6 {[%emt 0:
04:11]} 17. Ne4 {[%emt 0:07:02]} Qc7 {[%emt 0:00:49]} 18. c3 {[%emt 0:04:58]}
Nb3 {[%emt 0:02:19]} 19. Ra3 {[%emt 0:01:00]} Nxa5 {[%emt 0:11:29]} 20. Rxa5 {
[%emt 0:08:34]} Qxb6 {[%emt 0:00:16]} 21. Rxc5 {[%emt 0:01:50]} fxe5 {[%emt 0:
05:50]} 22. fxe5 {[%emt 0:00:43]} Rxf1+ {[%emt 0:00:38]} 23. Qxf1 {[%emt 0:01:
48]} Bf5 {[%emt 0:05:18]} 24. Qe2 {[%emt 0:02:38]} Qd8 {[%emt 0:02:05]} 25.
Bc4+ {[%emt 0:01:14]} e6 {[%emt 0:00:20]} 26. Ng5 {[%emt 0:00:31]} Qe7 {[%emt
0:07:34]} 27. g4 {[%emt 0:02:40]} Bh6 {[%emt 0:00:37]} 28. gxf5 {[%emt 0:02:13]
} Bxg5 {[%emt 0:00:51]} 29. f6 {[%emt 0:07:07]} Bxe3+ {[%emt 0:02:13]} 30. Qxe3
{[%emt 0:00:01]} Qd7 {[%emt 0:00:05]} 31. Qd4 {[%emt 0:00:08]} Qxd4+ {[%emt 0:
01:46]} 32. cxd4 {[%emt 0:00:01]} Kf7 {[%emt 0:00:07]} 33. d5 {[%emt 0:00:12]}
exd5 {[%emt 0:00:26]} 34. Rxd5 {[%emt 0:00:21]} b5 {[%emt 0:01:22]} 35. Rd7+ {
[%emt 0:00:24]} Kf8 {[%emt 0:00:19]} 36. Bb3 {[%emt 0:00:13]} Nxf6 {[%emt 0:00:
59]} 37. exf6 {[%emt 0:00:40]} h5 {[%emt 0:00:39]} 38. Rh7 {[%emt 0:00:28]} 1-0